Cogmind - Beta 14 @@@ ROGUE MODE // 2024.12.31 @ 12:12:28 Player: Nueadkie Result: Destroyed by G-47 Trooper with Particle Gun Performance ------------- Evolutions (2) 1000 Regions Visited (5) 1000 Robots Destroyed (31) 155 Value Destroyed (866) 866 Prototype IDs (6) 120 Alien Tech Used (0) 0 Bonus (0) 0 TOTAL SCORE: 3141 Bonus ------- None Cogmind --------- Core Integrity 0/550 Matter 235/300 Energy 58/100 System Corruption 10% Temperature Cool (9) Movement Hovering (66) Location -8/Materials Parts ------- > --- POWER (1) -------- (None) > --- PROPULSION (4) --- Improved Hover Unit Combat Airjet > --- UTILITY (4) ------ Improved Terrain Scan Processor > --- WEAPON (2) ------- Pulse Rifle > --- INVENTORY (5) ---- Small Storage Unit Compact Matter Pod (150) Signal Interpreter Peak State ------------ > --- POWER ------------ Nuclear Core > --- PROPULSION ------- Xenon Bombardment Thruster Xenon Bombardment Thruster Xenon Bombardment Thruster Xenon Bombardment Thruster > --- UTILITY ---------- Experimental Sensor Array Signal Interpreter Improved Terrain Scanner Improved Terrain Scan Processor > --- WEAPON ----------- Lightning Gun Plasma Cannon > --- INVENTORY -------- Combat Airjet Improved Heat Sink Small Storage Unit Compact Matter Pod Signal Interpreter [Rating: 44] Favorites ----------- Power Light Nuclear Core Engine Ion Engine Power Core Light Nuclear Core Propulsion Aluminum Leg Leg Aluminum Leg Hover Unit Combat Airjet Flight Unit Xenon Bombardment Thruster Utility Signal Interpreter Device Experimental Sensor Array Storage Small Storage Unit Processor Signal Interpreter Weapon Light Assault Rifle Energy Gun Particle Gun Energy Cannon Plasma Cannon Ballistic Gun Light Assault Rifle Slashing Weapon Katana Build | -11 -10 -10 -9 -9 -8 ------- Run | Yrd Mat Min Mat Min Mat Slots Evolved 4 | . . . 2 . 2 Power . | . . . . . . Propulsion 2 | . . . 1 . 1 Utility 2 | . . . 1 . 1 Weapon . | . . . . . . Parts Attached 63 | 6 10 5 5 12 25 Power 7 | 1 1 . . 1 4 Engine 5 | 1 . . . 1 3 Core 2 | . 1 . . . 1 Reactor . | . . . . . . Propulsion 22 | 2 2 3 1 7 7 Treads . | . . . . . . Leg 9 | 2 2 1 . 4 . Wheel . | . . . . . . Hover 5 | . . 2 1 . 2 Flight 8 | . . . . 3 5 Utility 15 | 1 5 . 1 2 6 Device 8 | . 3 . 1 1 3 Storage 3 | 1 1 . . 1 . Processor 4 | . 1 . . . 3 Hackware . | . . . . . . Protection . | . . . . . . Artifact . | . . . . . . Weapon 19 | 2 2 2 3 2 8 Energy Gun 10 | 1 1 2 2 . 4 Energy Cannon 3 | . . . . . 3 Ballistic Gun 5 | 1 1 . 1 2 . Ballistic Cannon . | . . . . . . Launcher . | . . . . . . Special Weapon . | . . . . . . Impact Weapon . | . . . . . . Slashing Weapon 1 | . . . . . 1 Piercing Weapon . | . . . . . . Special Melee Weapon . | . . . . . . Unidentified Prototypes 1 | . . . . 1 . Corrupted Parts 1 | . . . . . 1 System Corruption 1 | . . . . . 1 Parts Lost 23 | . 1 1 4 1 16 Power 4 | . . . 1 . 3 Propulsion 6 | . . . . 1 5 Utility 7 | . 1 . 1 . 5 Weapon 6 | . . 1 2 . 3 Highest Loss Streak 9 | . 1 1 4 1 9 To Critical Strikes . | . . . . . . Average Slot Usage (%) 90 | . 99 99 81 92 82 Engine 5 | . 9 . . 10 4 Core 5 | . 4 14 9 . 3 Leg 14 | . 28 21 . 11 6 Hover 4 | . . 6 20 1 . Flight 7 | . . . . 17 19 Device 9 | . 9 . 8 6 17 Storage 7 | . 8 14 11 11 1 Processor 11 | . 9 14 11 11 11 Energy Gun 9 | . 10 13 16 . 6 Energy Cannon 2 | . . . . . 7 Ballistic Gun 10 | . 17 14 3 21 . Peak Build Rating 44 | 6 10 19 23 18 44 Average Rating 18 | 4 7 12 20 14 31 On Entrance 11 | . 6 10 19 14 18 Naked Turns . | . . . . . . Heaviest Build 23 | 10 14 14 17 13 23 Greatest Support 30 | 20 20 24 24 30 30 Greatest Overweight (x) 3 | 3 . 1 . 1 1 Average Overweight (x) . | . . . . . . Largest Inventory Capacity 8 | 8 8 8 8 8 8 Average Capacity 6 | 7 6 8 8 8 5 Most Carried 8 | 2 8 8 8 8 8 Average Carried 6 | 1 6 7 7 7 5 Final Capacity 8 | 8 8 8 8 8 5 Final Carried 8 | 2 8 8 6 8 3 Class Distribution -------------------- 45% | Scavenger-Mutant 32% | Mutant 8% | Skirmisher 7% | Scout 6% | Scavenger-Assassin Dominant Class ---------------- Mutant | -10/Materials Scavenger-Mutant | -10/Mines Scavenger-Mutant | -9/Materials Scavenger-Mutant | -9/Mines Skirmisher | -8/Materials Resources | -11 -10 -10 -9 -9 -8 ----------- Run | Yrd Mat Min Mat Min Mat Matter Collected 864 | 243 177 84 47 142 171 Remotely . | . . . . . . Salvage Created 1238 | . 379 205 263 126 265 Parts 83 | . 22 6 21 14 20 Haulers Intercepted 2 | . . . 1 . 1 Recyclers Shooed 3 | . 2 . . . 1 Parts Field Recycled . | . . . . . . Retrieved Matter . | . . . . . . Parts Self-Destructed . | . . . . . . Prevented . | . . . . . . Kills | -11 -10 -10 -9 -9 -8 ------- Run | Yrd Mat Min Mat Min Mat Combat Hostiles Destroyed 28 | . 7 7 3 5 6 Melee 1 | . . . . . 1 Guns 22 | . 7 7 3 5 . Cannons 5 | . . . . . 5 Classes Destroyed 8 | . 3 1 3 1 . Worker 1 | . . . 1 . . Hauler 2 | . . . 1 . 1 Mechanic 1 | . 1 . . . . Watcher 4 | . 2 . 1 . 1 Swarmer 6 | . . . . 3 3 Grunt 12 | . 7 2 . 2 1 Sentry 5 | . . . 3 . 2 Assembled 5 | . . 5 . . . Best Kill Streak 3 | . 2 2 3 3 3 Combat Bots Only 3 | . 2 2 1 3 3 Max Kills in Single Turn 2 | . 1 1 2 1 1 Gunslinging . | . . . . . . Exploded . | . . . . . . Melee 1 | . . . . . 1 Uniques/NPCs Destroyed . | . . . . . . Combat | -11 -10 -10 -9 -9 -8 -------- Run | Yrd Mat Min Mat Min Mat Hostile Shots Fired 329 | . 32 42 84 18 153 Missed 106 | . 10 12 28 6 50 Damage Taken 3298 | . 263 466 716 106 1747 Core 1056 | . 47 166 225 55 563 Absorbed by Shields . | . . . . . . Regen/Repaired (Parts) 47 | . . . 47 . . Core Remaining (%) 48 | 100 . 14 . 30 . Volleys Fired 149 | . 44 31 23 17 34 Largest 2 | . 2 2 2 2 2 Hottest 160 | . 85 85 90 40 160 Shots Fired 260 | . 89 61 36 24 50 Gun 222 | . 89 61 36 24 12 Cannon 38 | . . . . . 38 Launcher . | . . . . . . Special . | . . . . . . Kinetic 125 | . 63 31 7 24 . Thermal 99 | . 26 30 1 . 42 Explosive . | . . . . . . Electromagnetic 36 | . . . 28 . 8 Robot Hit Streak 22 | . 9 7 22 10 7 Robot Miss Streak 5 | . 4 3 5 1 4 Penetration Max . | . . . . . . Secondary Targets 1 | . . . 1 . . Max Gunslinging Chain 1 | . . . 1 . . Shots Hit Robots 161 | . 50 34 24 19 34 Core Hits 73 | . 22 17 14 9 11 Critical Kills . | . . . . . . Critical Parts Destroyed 1 | . 1 . . . . Critical Strikes 3 | . 1 . . . 2 Destroy 1 | . 1 . . . . Sever 2 | . . . . . 2 Melee Attacks 12 | . . . . . 12 Impact . | . . . . . . Slashing 12 | . . . . . 12 Piercing . | . . . . . . Sneak Attacks 1 | . . . . . 1 Combat Hostiles 1 | . . . . . 1 Follow-up Attacks . | . . . . . . Damage Inflicted 2307 | . 471 394 377 159 906 Guns 1563 | . 471 394 377 159 162 Cannons 460 | . . . . . 460 Explosions . | . . . . . . Melee 281 | . . . . . 281 Ramming 3 | . . . . . 3 Kinetic 646 | . 301 159 27 159 . Thermal 932 | . 170 235 15 . 512 Explosive . | . . . . . . Electromagnetic 445 | . . . 335 . 110 Impact . | . . . . . . Slashing 281 | . . . . . 281 Piercing . | . . . . . . Highest Corruption 10 | . 2 2 . . 10 Average Corruption 4 | . 2 2 . . 9 Corruption Purged . | . . . . . . Corruption Blocked . | . . . . . . Effects 28 | . 9 3 . . 16 Message Errors 5 | . 3 . . . 2 Matter Fused 4 | . . . . . 4 Heat Flow Errors 5 | . 2 1 . . 2 Energy Discharges 3 | . 1 . . . 2 Data Loss (minor) 8 | . 2 1 . . 5 Misfires 2 | . 1 . . . 1 Alerts 1 | . . 1 . . . Overload Shots . | . . . . . . Overflow Damage 18 | . . . . . 18 Projectiles 18 | . . . . . 18 Explosions . | . . . . . . Melee . | . . . . . . Knockbacks . | . . . . . . Impact . | . . . . . . Kinetic . | . . . . . . Secondary . | . . . . . . Self-Inflicted Damage 1 | . . . . . 1 Shots . | . . . . . . Rammed 2 | . . . . . 2 Targets Rammed 2 | . . . . . 2 Kicked . | . . . . . . Crushed . | . . . . . . Highest Temperature 688 | . 327 276 146 6 688 Average Temperature 124 | . 70 113 59 6 201 Received Heat Transfer 1179 | . 150 177 216 24 612 Effects 17 | . 1 1 . . 15 Shutdowns 3 | . . . . . 3 Energy Bleed 4 | . 1 1 . . 2 Interference 3 | . . . . . 3 Matter Decay 1 | . . . . . 1 Short Circuit 1 | . . . . . 1 Damage (minor) 1 | . . . . . 1 Damage (major) 3 | . . . . . 3 Damage (core) 1 | . . . . . 1 Siege Activations . | . . . . . . Robots Corrupted . | . . . . . . Combat Hostiles . | . . . . . . Parts Fried 2 | . . . 2 . . Impact Corruptions . | . . . . . . Robots Melted . | . . . . . . Combat Hostiles . | . . . . . . Parts Melted 3 | . . 1 . . 2 Heat Transferred 2013 | . 410 555 37 . 1011 Parts Sabotaged . | . . . . . . Parts Stolen . | . . . . . . Parts Stripped . | . . . . . . Power Chain Reactions . | . . . . . . Alert | -11 -10 -10 -9 -9 -8 ------- Run | Yrd Mat Min Mat Min Mat Peak Influence 294 | . 294 118 244 174 142 Initial 67 | . . 63 . 42 67 Average 94 | . 98 88 107 127 80 Maximum Alert Level 1 | . 1 . 1 . . Low Security (%) 91 | 100 78 100 88 100 100 Level 1 8 | . 21 . 11 . . Level 2 . | . . . . . . Level 3 . | . . . . . . Level 4 . | . . . . . . Level 5 . | . . . . . . High Security . | . . . . . . Max Security . | . . . . . . Squads Dispatched 7 | . 1 . 1 1 4 Investigation 2 | . . . . 1 1 Extermination . | . . . . . . Reinforcement 5 | . 1 . 1 . 3 Assault . | . . . . . . Garrison . | . . . . . . Intercept . | . . . . . . Searches Triggered . | . . . . . . Construction Impeded . | . . . . . . Haulers Reinforced . | . . . . . . Active Scanning Responses . | . . . . . . Cargo Convoy Interrupts . | . . . . . . Stealth | -11 -10 -10 -9 -9 -8 --------- Run | Yrd Mat Min Mat Min Mat Distress Signals 7 | . 4 . 2 . 1 Communications Jammed . | . . . . . . Distress Signals . | . . . . . . Times Spotted 75 | . 19 11 14 5 26 Peak Tracking Total 12 | . 5 4 7 3 12 Tactical Retreats 11 | . 3 1 4 . 3 Traps | -11 -10 -10 -9 -9 -8 ------- Run | Yrd Mat Min Mat Min Mat Traps Triggered 2 | . 1 . . . 1 Indirectly . | . . . . . . Trap Hack Attempts . | . . . . . . Triggered . | . . . . . . Disarmed . | . . . . . . Reprogrammed . | . . . . . . Reused . | . . . . . . Traps Extracted . | . . . . . . Installed . | . . . . . . Triggered . | . . . . . . Machines | -11 -10 -10 -9 -9 -8 ---------- Run | Yrd Mat Min Mat Min Mat Machines Disabled 3 | . 2 . 1 . . Max in Single Turn 1 | . 1 . 1 . . Machines Repaired . | . . . . . . Machines Dismantled . | . . . . . . Machines Sabotaged . | . . . . . . Overloaded Fab Kills . | . . . . . . Hacking | -11 -10 -10 -9 -9 -8 --------- Run | Yrd Mat Min Mat Min Mat Machines Accessed 11 | . 6 . 3 1 1 Terminals 8 | . 5 . 1 1 1 Fabricators . | . . . . . . Repair Stations 1 | . . . 1 . . Recycling Units 2 | . 1 . 1 . . Scanalyzers . | . . . . . . Garrison Access . | . . . . . . Total Hacks 28 | . 12 . 6 6 4 Successful 16 | . 7 . 5 3 1 Failed 12 | . 5 . 1 3 3 Catastrophic . | . . . . . . Database Lockouts . | . . . . . . Manual . | . . . . . . Terminals 20 | . 8 . 2 6 4 Fabricators . | . . . . . . Repair Stations 2 | . . . 2 . . Recycling Units 6 | . 4 . 2 . . Scanalyzers . | . . . . . . Garrison Access . | . . . . . . Terminal Hacks 10 | . 4 . 2 3 1 Record 4 | . . . 1 3 . Robot Analysis 2 | . 1 . . . 1 Prototype ID Bank 3 | . 3 . . . . Zone Layout 1 | . . . 1 . . Fabricator Hacks . | . . . . . . Repair Station Hacks 2 | . . . 2 . . Scan Component 1 | . . . 1 . . Repair 1 | . . . 1 . . Recycling Unit Hacks 4 | . 3 . 1 . . Report Inventory 2 | . 1 . 1 . . Retrieve Matter 1 | . 1 . . . . Retrieve Components 1 | . 1 . . . . Scanalyzer . | . . . . . . Garrison Access Hacks . | . . . . . . Unauthorized Hacks . | . . . . . . Terminals . | . . . . . . Fabricators . | . . . . . . Repair Stations . | . . . . . . Recycling Units . | . . . . . . Scanalyzers . | . . . . . . Garrison Access . | . . . . . . Data Cores Recovered . | . . . . . . Used . | . . . . . . Hacking Detections 4 | . 2 . . 1 1 Full Trace Events 1 | . . . . 1 . Feedback Events . | . . . . . . Feedback Blocked . | . . . . . . Robot Schematics Acquired . | . . . . . . Robots Built . | . . . . . . Authchips . | . . . . . . Time . | . . . . . . Total Robot Build Rating . | . . . . . . Part Schematics Acquired . | . . . . . . Parts Built . | . . . . . . Authchips . | . . . . . . Time . | . . . . . . Total Part Build Rating . | . . . . . . Parts Repaired 1 | . . . 1 . . Time 50 | . . . 50 . . Parts Recycled . | . . . . . . Recycled Matter . | . . . . . . Retrieved Matter 55 | . 55 . . . . Retrieved Components 10 | . 10 . . . . Parts Scanalyzed . | . . . . . . Part Schematics Acquired . | . . . . . . Parts Damaged . | . . . . . . Bothacking | -11 -10 -10 -9 -9 -8 ------------ Run | Yrd Mat Min Mat Min Mat Used RIF Installer . | . . . . . . Robots Hacked . | . . . . . . Non-combat . | . . . . . . Combat . | . . . . . . Robot Hacks Applied . | . . . . . . Relay Couplers Released . | . . . . . . Fabnet Peak Effective % . | . . . . . . Robots Rewired . | . . . . . . Allies Hacked . | . . . . . . Hacks Repelled . | . . . . . . Allies | -11 -10 -10 -9 -9 -8 -------- Run | Yrd Mat Min Mat Min Mat Total Allies . | . . . . . . Largest Group . | . . . . . . Highest-Rated Group . | . . . . . . Highest-Rated Ally . | . . . . . . Total Orders . | . . . . . . Ally Attacks . | . . . . . . Total Damage . | . . . . . . Kills . | . . . . . . Allies Corrupted . | . . . . . . Allies Melted . | . . . . . . Intel | -11 -10 -10 -9 -9 -8 ------- Run | Yrd Mat Min Mat Min Mat Robot Analysis Total 2 | . 1 . . . 1 Derelict Logs Recovered 2 | . . 1 . 1 . Drone Launches . | . . . . . . Drone Recoveries . | . . . . . . Exploration | -11 -10 -10 -9 -9 -8 ------------- Run | Yrd Mat Min Mat Min Mat Turns Passed 3108 | 55 920 413 481 351 888 Spaces Moved 2088 | 34 592 289 366 365 442 Core 71 | 14 . . . . 57 Treads . | . . . . . . Legs 939 | 20 592 164 . 78 85 Wheels . | . . . . . . Hover 515 | . . 125 366 7 17 Flight 563 | . . . . 280 283 Fastest Speed 31 | 50 120 77 77 34 31 Average Speed 91 | 130 120 101 77 64 79 Slowest Speed 200 | 200 120 160 77 190 150 Overloaded Moves . | . . . . . . Propulsion Burnouts . | . . . . . . Robots Hopped 2 | . . . . . 2 Cave-ins Triggered 1 | . . . . . 1 Exploration Rate (%) 40 | 4 72 41 22 72 30 Regions Visited 5 Branch Regions 2 Pre-discovered Areas 1 | . . . . 1 . Known Exits Taken 4 | . 1 1 1 1 . Unknown Exits Taken 1 | 1 . . . . . Scrap Searched 1 | . . . . 1 . Spaces Dug 5 | . . . . . 5 Terrain Destroyed 19 | . . . . . 19 Melee . | . . . . . . Projectile 19 | . . . . . 19 AOE . | . . . . . . Terrain Rammed . | . . . . . . Walls Destroyed . | . . . . . . Machines Disabled . | . . . . . . Actions | -11 -10 -10 -9 -9 -8 --------- Run | Yrd Mat Min Mat Min Mat Total 3010 | 41 726 354 528 457 904 Wait 657 | . 62 22 135 58 380 Move 2079 | 33 591 288 365 364 438 Hop 2 | . . . . . 2 Pick Up 20 | 2 11 3 . 2 2 Fast Attach 27 | 6 2 1 1 6 11 Attach 8 | . . . 2 1 5 Detach 2 | . . . . 1 1 Swap 28 | . 8 4 2 5 9 Drop 24 | . 8 5 . 3 8 Fire 149 | . 44 31 23 17 34 Melee 12 | . . . . . 12 Ram 2 | . . . . . 2 Kick . | . . . . . . Crush . | . . . . . . Escape Stasis . | . . . . . . Rewire . | . . . . . . Trap . | . . . . . . Miscellaneous . | . . . . . . Route ------- -11/Scrapyard -10/Materials (discovered 4 exits: *Mat x3 / *Min) -10/Mines -9/Materials -9/Mines (discovered 2 exits: *Mat x2) -8/Materials (discovered 1 exit: [*Fac]) History --------- Turn | Location | Event 14 | -11/Scrapyard | Discovered new exit (range 15) 56 | -11/Scrapyard | Entered Materials 270 | -10/Materials | Discovered new exit (range 9) 318 | -10/Materials | Build established: Mutant 365 | -10/Materials | Identified exit to Materials 489 | -10/Materials | Discovered exit to Materials (range 4) 874 | -10/Materials | Discovered exit to Materials (range 7) 954 | -10/Materials | Discovered new exit (range 7) 960 | -10/Materials | Identified exit to Mines 976 | -10/Materials | Entered Mines 986 | -10/Mines | Met a Derelict bent on vengeance 1006 | -10/Mines | Build established: Scavenger-Mutant 1018 | -10/Mines | Discovered exit to Materials (range 6) 1092 | -10/Mines | Assembled infested the area 1216 | -10/Mines | Core integrity fell below 50% 1274 | -10/Mines | Core integrity fell below 20% 1313 | -10/Mines | Learned Materials stockpile data 1389 | -10/Mines | Entered Materials 1389 | -9/Materials | Evolved 2 slots: Propulsion x1, Utility x1 1443 | -9/Materials | Repaired Cmb. Airjet 1497 | -9/Materials | Discovered new exit (range 16) 1519 | -9/Materials | Identified exit to Mines 1827 | -9/Materials | Core integrity fell below 50% 1852 | -9/Materials | Lost 4 parts (1p1u2w) 1870 | -9/Materials | Entered Mines 1947 | -9/Mines | Learned location of Storage (-8) 1963 | -9/Mines | Received a Rocket Launcher from a helpful Derelict 1966 | -9/Mines | Discovered new exit (range 8) 1970 | -9/Mines | Discovered new exit (range 12) 1972 | -9/Mines | Identified exit to Materials 2006 | -9/Mines | Found a damaged Exp. Sensor Array with a note attached 2007 | -9/Mines | Found Prototype Device 2007 | -9/Mines | Identified Exp. Sensor Array 2221 | -9/Mines | Entered Materials 2221 | -8/Materials | Evolved 2 slots: Propulsion x1, Utility x1 2673 | -8/Materials | Crushed by falling debris 2704 | -8/Materials | Lost 4 parts (1n2u1w) 3035 | -8/Materials | System corruption reached 10% 3038 | -8/Materials | Core integrity fell below 50% 3077 | -8/Materials | Lost 9 parts (2p3n2u2w) 3100 | -8/Materials | Core integrity fell below 20% 3102 | -8/Materials | Discovered new exit (range 13) 3109 | -8/Materials | Destroyed by G-47 Trooper with Particle Gun Last Messages --------------- 03071_ Dropped Imp. Heat Sink. 03071_ K-01 Serf cleans the Atomic Centrifuge. 03085_ System corrupted: Energy discharge (-11). 03086_ ALERT: Suspicious intruders detected, dispatching Cutter reinforcements to area. 03089_ W-25 Informer destroyed. 03093_ Acquired 17 matter. 03094_ K-01 Serf collects debris. 03096_ Acquired Unknown Hover Unit. 03096_ Identified Imp. Hover Unit. 03097_ K-01 Serf destroyed. 03098_ Acquired Imp. Sensor Array. 03099_ Critical hit (Burn: +37). 03102_ EXIT=FOUND 03102_ Penetrated by Slug. 03102_ Imp. Sensor Array destroyed. 03102_ Deuterium Engine destroyed. 03102_ Knocked back. 03103_ A-02 Transporter destroyed. 03104_ Knocked back. 03105_ ALERT: Hostiles spotted, dispatching reinforcements to Terminal M008. Map ----- +----------------------------------------------------+ | | | | | ?????????????????????????????????????????#? | | ??????????????????????????????????????? ??# | | ?????????????????????????????????????? ???? | | ???????????????????????????????????"??????# | | ??????????????????????????????????????????? | | ??????????????????????????????????? ?? ???# | | ??????????????????????????????????????????? | | ???????????????????????????????????? ?????? | | ?????????????????###+#?????????###+####??#? | | ????????????????# ????????? #?### | | ????????????????# < ?????????? #?# | | ????????????????# ????????? #?# | | ????????????????# H #???????????# #?# | | ????????????????# #???????????# ### | | ????????????????# gg #???????????# #?# | | ????????????????# #???????????# ##### | | ????????????????# #?????????? # | | ????????????????# #?????????" + | | ????????????????# #?????????? # ! | | ????????????????# #???????????# | | ????????????????# #???????????# """ | | ???????????????## ###?????????# """ | | ?????????####### ########### """ | | ?????????# @ = Y | | ?????????# gg!m | | ?????????# ! c ! T | | ?????????# c g ################# | | ?????????# "T" # ! * #???????????????? | | ?????????# """ #!% ![#?????????????#?? | | ?????????#########!! ! #???????????????? | | ?????????????????#g u#???????????????? | | ?????????????????#g #???????????????? | | ?????????????????# #???????????????? | | ?????????????????# g #???????????????? | | ?????????????????# ??????????????? | | ????????????????? #######+?????????????? | | ???????????????? #????????????????????? | | ??????????????? #????????????????????? | | ???????????????+### ##????????????????????? | | ??????????????????# #?????????????????????? | | ??????????????????? ??????????????????????? | | ??????????????????? ??????????????????????? | | ??????????????????? ??????????????????????? | | ??????????????????????????????????????????? | | ??????????????????????????????????????????? | | ??????????????????????????????????????????? | | ??????????????????????????????????????????? | | ??????????????????????????????????????????? | +----------------------------------------------------+ Best States ------------- Heat Dissipation 45 Energy Generation 14 Energy Capacity 275 Matter Stores 300 Matter Capacity 300 Sight Range 16 Robot Scan Range 20 Terrain Scan Range 16 Terrain Scan Density 110 Evasion (%) 63 Item Schematics ----------------- None Robot Schematics ------------------ None Fabricated ------------ Nothing Alien Tech Used ----------------- None Achievements -------------- Unlikely Earthworm Challenges ------------ None Game ------ Seed FlakTechScythe Manual? 0 Play Time 00:39:16 Cumulative 9.4 hours Start 2024.12.31 @ 11:34:28 End 2024.12.31 @ 12:12:28 Sessions 1 Manual Loads 0 Difficulty Rogue Special Mode None Game No. 10 Rogue 10 Adventurer 0 Explorer 0 Win Type - Total 0 Types 0/0/0/0/0/0/0/0/0 Lore% 11 Gallery% 14 Achievement% 13 Wizard Run 0 Options --------- Layout 0 ASCII 0 Keyboard 0 Movement Numpad Keybinds 0 Fullscreen 1 Font 18/SmallcapsGlow Map View 112x50 Zoom Use 0% Tactical HUD 1 Map Filters NONE Filters NONE Steam 1 RUN: 97eb3e99-bf20-43b7-af82-d344b01e0976